fUST/lending_fUST_20240725
["ID","MTS","AMOUNT","RATE_DAILY","PERIOD"]
[333151556,1721891444186,-878.501365,0.00013698,2]
[333151557,1721891444196,-878.501365,0.00013698,2]
[333151558,1721891444206,-878.501365,0.00013698,2]
[333151559,1721891444215,-500.0,0.00013698,2]
[333151560,1721891444224,-500.0,0.00013698,2]
[333151561,1721891444233,-500.0,0.00013698,2]
[333151562,1721891444243,-341.5981426,0.00013698,2]
[333151563,1721891444252,-504.23524958,0.00013698,2]
[333151564,1721891444264,-500.0,0.00013698,2]
[333151565,1721891444275,-500.0,0.00013698,2]
[333151566,1721891444285,-500.0,0.00013698,2]
[333151567,1721891444295,-512.83,0.00013698,2]
[333151568,1721891444305,-502.25541503,0.00013698,2]
[333151569,1721891444316,-500.0,0.00013698,2]
[333151570,1721891444327,-500.0,0.00013698,2]
[333151571,1721891444338,-500.0,0.00013698,2]
[333151572,1721891444350,-505.63500078,0.00013698,2]
[333151573,1721891444361,-500.0,0.00013698,2]
[333151574,1721891444372,-505.14755196,0.00013698,2]
[333151575,1721891444382,-500.0,0.00013698,2]
[333151576,1721891444391,-500.0,0.00013698,2]
[333151577,1721891444400,-500.0,0.00013698,2]
[333151578,1721891444409,-500.0,0.00013698,2]
[333151579,1721891444419,-502.61922928,0.00013698,2]
[333151580,1721891444429,-500.0,0.00013698,2]
[333151581,1721891444438,-500.0,0.00013698,2]
[333151582,1721891444448,-500.0,0.00013698,2]
[333151583,1721891444459,-1546.94,0.00013698,2]
[333151584,1721891444469,-500.0,0.00013698,2]
[333151585,1721891444481,-501.41004709,0.00013698,2]
[333151586,1721891444492,-500.0,0.00013698,2]
[333151587,1721891444502,-500.0,0.00013698,2]
[333151588,1721891444514,-505.28780078,0.00013698,2]
[333151589,1721891444525,-500.0,0.00013698,2]
[333151590,1721891444536,-151.0,0.00013698,2]
[333151591,1721891444546,-151.0,0.00013698,2]
[333151592,1721891444556,-500.0,0.00013698,2]
[333151593,1721891444568,-151.0,0.00013698,2]
[333151594,1721891444578,-946.54,0.00013698,2]
[333151595,1721891444588,-151.0,0.00013698,2]
[333151596,1721891444598,-151.0,0.00013698,2]
[333151597,1721891444608,-151.0,0.00013698,2]
[333151598,1721891444618,-731.7,0.00013698,2]
[333151599,1721891444628,-500.0,0.00013698,2]
[333151600,1721891444638,-500.0,0.00013698,2]
[333151601,1721891444649,-500.0,0.00013698,2]
[333151602,1721891444658,-500.0,0.00013698,2]
[333151603,1721891444668,-500.0,0.00013698,2]
[333151604,1721891444678,-500.0,0.00013698,2]
[333151605,1721891444689,-500.0,0.00013698,2]
[333151606,1721891444700,-500.0,0.00013698,2]
[333151607,1721891444710,-500.0,0.00013698,2]
[333151608,1721891444721,-500.0,0.00013698,2]
[333151609,1721891444731,-500.0,0.00013698,2]
[333151610,1721891444743,-890.34,0.00013698,2]
[333151611,1721891444753,-569.12686434,0.00013698,2]
[333151612,1721891444764,-500.0,0.00013698,2]
[333151613,1721891444775,-1763.57,0.00013698,2]
[333151614,1721891444786,-500.0,0.00013698,2]
[333151615,1721891444797,-1818.4,0.00013698,2]
[333151616,1721891444807,-770.01,0.00013698,2]
[333151617,1721891444819,-1672.22,0.00013698,2]
[333151618,1721891444829,-500.0,0.00013698,2]
[333151619,1721891444842,-500.0,0.00013698,2]
[333151620,1721891444852,-500.0,0.00013698,2]
[333151621,1721891444863,-1173.86,0.00013698,2]
[333151622,1721891444875,-500.0,0.00013698,2]
[333151623,1721891444887,-504.62133,0.00013698,2]
[333151624,1721891444899,-500.0,0.00013698,2]
[333151625,1721891444910,-524.03868663,0.00013698,2]
[333151626,1721891444921,-500.0,0.00013698,2]
[333151627,1721891444933,-500.0,0.00013698,2]
[333151628,1721891444945,-500.0,0.00013698,2]
[333151629,1721891444954,-500.0,0.00013698,2]
[333151630,1721891444965,-500.0,0.00013698,2]
[333151631,1721891444975,-500.0,0.00013698,2]
[333151632,1721891444986,-500.0,0.00013698,2]
[333151633,1721891444997,-500.0,0.00013698,2]
[333151634,1721891445013,-500.0,0.00013698,2]
[333151635,1721891445023,-500.0,0.00013698,2]
[333151636,1721891445032,-480.90435604,0.00013698,2]
[333151637,1721891445044,-714.53,0.00013698,2]
[333151638,1721891445054,-500.0,0.00013698,2]
[333151639,1721891445064,-500.0,0.00013698,2]
[333151640,1721891445074,-614.24581285,0.00013698,2]
[333151641,1721891445086,-1559.92,0.00013698,2]
[333151642,1721891445096,-500.0,0.00013698,2]
[333151643,1721891445106,-500.0,0.00013698,2]
[333151644,1721891445116,-549.45,0.00013698,2]
[333151645,1721891445126,-500.0,0.00013698,2]
[333151646,1721891445135,-1014.94,0.00013698,2]
[333151647,1721891445145,-500.0,0.00013698,2]
[333151648,1721891445154,-2560.65,0.00013698,2]
[333151649,1721891445164,-500.0,0.00013698,2]
[333151650,1721891445175,-1518.71,0.00013698,2]
[333151651,1721891445184,-500.0,0.00013698,2]
[333151652,1721891445193,-500.0,0.00013698,2]
[333151653,1721891445203,-500.0,0.00013698,2]
[333151654,1721891445212,-500.0,0.00013698,2]
[333151655,1721891445222,-211.817131,0.00013698,2]
[333151656,1721891445231,-211.817131,0.00013698,2]
[333151657,1721891445241,-833.35,0.00013698,2]
[333151658,1721891445251,-211.817131,0.00013698,2]
[333151659,1721891445264,-211.817131,0.00013698,2]
[333151660,1721891445274,-151.0,0.00013698,2]
[333151661,1721891445283,-151.0,0.00013698,2]
[333151662,1721891445294,-218.48423572,0.00013698,2]
[333151663,1721891445303,-548.94976271,0.00013698,2]
[333151664,1721891445314,-1468.57,0.00013698,2]
[333151665,1721891445323,-247.997238,0.00013698,2]
[333151666,1721891445333,-247.997238,0.00013698,2]
[333151667,1721891445342,-743.22,0.00013698,2]
[333151668,1721891445352,-500.0,0.00013698,2]
[333151669,1721891445361,-247.997238,0.00013698,2]
[333151670,1721891445371,-500.0,0.00013698,2]
[333151671,1721891445381,-247.997238,0.00013698,2]
[333151672,1721891445390,-500.0,0.00013698,2]
[333151673,1721891445399,-151.0,0.00013698,2]
[333151674,1721891445409,-151.0,0.00013698,2]
[333151675,1721891445419,-500.0,0.00013698,2]
[333151676,1721891445428,-500.0,0.00013698,2]
[333151677,1721891445438,-171.762607,0.00013698,2]
[333151678,1721891445447,-418.50907211,0.00013698,2]
[333151679,1721891445457,-502.55898061,0.00013698,2]
[333151680,1721891445467,-500.0,0.00013698,2]
[333151681,1721891445476,-500.0,0.00013698,2]
[333151682,1721891445486,-500.0,0.00013698,2]
[333151683,1721891445495,-151.0,0.00013698,2]
[333151684,1721891445504,-151.0,0.00013698,2]
[333151685,1721891445516,-1793.61,0.00013698,2]
[333151686,1721891445526,-500.0,0.00013698,2]
[333151687,1721891445536,-2179.75,0.00013698,2]
[333151688,1721891445546,-500.0,0.00013698,2]
[333151689,1721891445556,-353.48571069,0.00013698,2]
[333151690,1721891445566,-500.0,0.00013698,2]
[333151691,1721891445575,-500.0,0.00013698,2]
[333151692,1721891445584,-500.0,0.00013698,2]
[333151693,1721891445594,-1009.49,0.00013698,2]
[333151694,1721891445603,-4920.04,0.00013698,2]
[333151695,1721891445613,-611.46,0.00013698,2]
[333151696,1721891445622,-627.89,0.00013698,2]
[333151697,1721891445632,-1139.01,0.00013698,2]
[333151698,1721891445641,-500.0,0.00013698,2]
[333151699,1721891445650,-501.298653,0.00013698,2]
[333151700,1721891445660,-503.41,0.00013698,2]
[333151701,1721891445670,-1761.14,0.00013698,2]
[333151703,1721891445680,-1635.87,0.00013698,2]
[333151705,1721891445690,-3431.54,0.00013698,2]
[333151707,1721891445699,-517.00291737,0.00013698,2]
[333151709,1721891445709,-500.0,0.00013698,2]
[333151711,1721891445718,-500.0,0.00013698,2]
[333151712,1721891445728,-500.0,0.00013698,2]
[333151713,1721891445737,-500.0,0.00013698,2]
[333151714,1721891445746,-500.0,0.00013698,2]
[333151715,1721891445757,-3776.51,0.00013698,2]
[333151716,1721891445767,-151.0,0.00013698,2]
[333151717,1721891445776,-151.0,0.00013698,2]
[333151718,1721891445786,-151.0,0.00013698,2]
[333151719,1721891445795,-151.0,0.00013698,2]
[333151720,1721891445806,-500.0,0.00013698,2]
[333151721,1721891445815,-502.45844531,0.00013698,2]
[333151722,1721891445825,-500.0,0.00013698,2]
[333151723,1721891445834,-1819.43,0.00013698,2]
[333151724,1721891445844,-500.0,0.00013698,2]
[333151725,1721891445853,-500.0,0.00013698,2]
[333151726,1721891445863,-500.0,0.00013698,2]
[333151727,1721891445872,-500.0,0.00013698,2]
[333151728,1721891445882,-500.0,0.00013698,2]
[333151729,1721891445892,-500.0,0.00013698,2]
[333151730,1721891445902,-500.0,0.00013698,2]
[333151731,1721891445912,-500.0,0.00013698,2]
[333151732,1721891445921,-500.0,0.00013698,2]
[333151733,1721891445931,-491.4600684,0.00013698,2]
[333151734,1721891445940,-500.0,0.00013698,2]
[333151735,1721891445950,-500.0,0.00013698,2]
[333151736,1721891445959,-500.0,0.00013698,2]
[333151737,1721891445969,-500.0,0.00013698,2]
[333151738,1721891445979,-12136.54,0.00013698,2]
[333151739,1721891445989,-500.0,0.00013698,2]
[333151740,1721891445999,-500.0,0.00013698,2]
[333151741,1721891446011,-500.0,0.00013698,2]
[333151742,1721891446020,-660.43,0.00013698,2]
[333151743,1721891446030,-7844.49,0.00013698,2]
[333151744,1721891446039,-941.89,0.00013698,2]
[333151745,1721891446050,-500.0,0.00013698,2]
[333151746,1721891446061,-1297.98,0.00013698,2]
[333151747,1721891446071,-500.0,0.00013698,2]
[333151748,1721891446081,-1068.12,0.00013698,2]
[333151749,1721891446091,-500.0,0.00013698,2]
[333151750,1721891446101,-1017.41,0.00013698,2]
[333151751,1721891446111,-500.0,0.00013698,2]
[333151752,1721891446121,-511.66639089,0.00013698,2]
[333151753,1721891446130,-500.0,0.00013698,2]
[333151754,1721891446140,-500.0,0.00013698,2]
[333151755,1721891446149,-5575.74,0.00013698,2]
[333151756,1721891446159,-500.0,0.00013698,2]
[333151757,1721891446168,-500.0,0.00013698,2]
[333151758,1721891446178,-500.0,0.00013698,2]
[333151759,1721891446187,-402.395084,0.00013698,2]
[333151760,1721891446197,-402.395084,0.00013698,2]
[333151761,1721891446207,-402.395084,0.00013698,2]
[333151762,1721891446216,-402.395084,0.00013698,2]
[333151763,1721891446226,-500.0,0.00013698,2]
[333151764,1721891446236,-500.0,0.00013698,2]
[333151765,1721891446245,-7802.11,0.00013698,2]
[333151766,1721891446254,-1429.19,0.00013698,2]
[333151767,1721891446266,-500.0,0.00013698,2]
[333151768,1721891446275,-402.395084,0.00013698,2]
[333151769,1721891446284,-500.0,0.00013698,2]
[333151770,1721891446293,-500.0,0.00013698,2]
[333151771,1721891446303,-402.395084,0.00013698,2]
[333151773,1721891446313,-402.395084,0.00013698,2]
[333151775,1721891446323,-151.0,0.00013698,2]
[333151777,1721891446332,-3394.75,0.00013698,2]
[333151778,1721891446342,-402.395084,0.00013698,2]
[333151779,1721891446351,-151.0,0.00013698,2]
[333151781,1721891446361,-151.0,0.00013698,2]
[333151783,1721891446371,-728.23,0.00013698,2]
[333151785,1721891446381,-151.0,0.00013698,2]
[333151787,1721891446390,-532.79055912,0.00013698,2]
[333151789,1721891446400,-500.0,0.00013698,2]
[333151791,1721891446410,-1388.42,0.00013698,2]
[333151793,1721891446419,-500.0,0.00013698,2]
[333151795,1721891446428,-500.0,0.00013698,2]
[333151797,1721891446438,-500.0,0.00013698,2]
[333151798,1721891446448,-1708.65,0.00013698,2]
[333151799,1721891446457,-2094.91,0.00013698,2]
[333151800,1721891446467,-966.05,0.00013698,2]
[333151801,1721891446476,-500.0,0.00013698,2]
[333151802,1721891446486,-500.0,0.00013698,2]
[333151803,1721891446495,-500.0,0.00013698,2]
[333151804,1721891446505,-500.0,0.00013698,2]
[333151805,1721891446516,-1439.58,0.00013698,2]
[333151806,1721891446525,-500.0,0.00013698,2]
[333151807,1721891446535,-500.0,0.00013698,2]
[333151808,1721891446544,-500.0,0.00013698,2]
[333151809,1721891446554,-256.22,0.00013698,2]
[333151810,1721891446564,-520.06396097,0.00013698,2]
[333151811,1721891446573,-618.79,0.00013698,2]
[333151812,1721891446583,-768.86,0.00013698,2]
[333151813,1721891446592,-151.0,0.00013698,2]
[333151814,1721891446602,-500.0,0.00013698,2]
[333151815,1721891446612,-151.0,0.00013698,2]
[333151816,1721891446622,-500.0,0.00013698,2]
[333151817,1721891446632,-151.0,0.00013698,2]
[333151818,1721891446644,-151.0,0.00013698,2]
[333151819,1721891446655,-500.0,0.00013698,2]
[333151820,1721891446665,-500.0,0.00013698,2]
[333151821,1721891446675,-151.0,0.00013698,2]
[333151822,1721891446684,-151.0,0.00013698,2]
[333151823,1721891446694,-151.0,0.00013698,2]
[333151824,1721891446704,-151.0,0.00013698,2]
[333151825,1721891446715,-500.0,0.00013698,2]
[333151828,1721891446727,-2285.69,0.00013698,2]
[333151830,1721891446738,-2285.69,0.00013698,2]
[333151832,1721891446747,-2285.69,0.00013698,2]
[333151834,1721891446759,-2285.69,0.00013698,2]
[333151835,1721891446770,-500.0,0.00013698,2]
[333151836,1721891446780,-2285.69,0.00013698,2]
[333151837,1721891446791,-2285.69,0.00013698,2]
[333151838,1721891446802,-151.0,0.00013698,2]
[333151839,1721891446814,-2285.69,0.00013698,2]
[333151840,1721891446827,-153.484741,0.00013698,2]
[333151841,1721891446836,-2285.69,0.00013698,2]
[333151842,1721891446848,-2285.69,0.00013698,2]
[333151843,1721891446860,-2285.69,0.00013698,2]
[333151844,1721891446872,-2285.69,0.00013698,2]
[333151845,1721891446884,-2285.69,0.00013698,2]
[333151846,1721891446894,-2285.69,0.00013698,2]
[333151847,1721891446903,-2285.69,0.00013698,2]
[333151848,1721891446914,-2285.69,0.00013698,2]
[333151849,1721891446924,-2285.69,0.00013698,2]
[333151850,1721891446934,-503.93951742,0.00013698,2]
[333151851,1721891446943,-2285.69,0.00013698,2]
[333151852,1721891446953,-2285.69,0.00013698,2]
[333151853,1721891446965,-2285.69,0.00013698,2]
[333151854,1721891446975,-781.39,0.00013698,2]
[333151855,1721891446985,-2285.69,0.00013698,2]
[333151856,1721891446996,-1171.01723092,0.00013698,2]
[333151857,1721891447511,-1114.67276908,0.00013698,2]
[333151858,1721891447522,-2285.69,0.00013698,2]
[333151859,1721891447675,-2285.69,0.00013698,2]
[333151860,1721891447684,-2285.82741197,0.00013698,2]
[333151861,1721891447694,-500.0,0.00013698,2]
[333151862,1721891447704,-500.0,0.00013698,2]
[333151863,1721891447715,-532.57706723,0.00013698,2]
[333151864,1721891447724,-500.0,0.00013698,2]
[333151865,1721891447734,-151.0,0.00013698,2]
[333151866,1721891447745,-151.0,0.00013698,2]
[333151867,1721891447755,-151.0,0.00013698,2]
[333151868,1721891447767,-742.02,0.00013698,2]
[333151869,1721891447777,-151.0,0.00013698,2]
[333151870,1721891447786,-1515.81,0.00013698,2]
[333151871,1721891447796,-500.0,0.00013698,2]
[333151872,1721891447806,-779.45,0.00013698,2]
[333151873,1721891447816,-500.0,0.00013698,2]
[333151874,1721891447825,-151.0,0.00013698,2]
[333151875,1721891447835,-500.0,0.00013698,2]
[333151876,1721891447844,-151.0,0.00013698,2]
[333151877,1721891447853,-970.03,0.00013698,2]
[333151878,1721891447863,-195.605228,0.00013698,2]
[333151879,1721891447873,-151.0,0.00013698,2]
[333151880,1721891447882,-151.0,0.00013698,2]
[333151881,1721891447893,-284.835686,0.00013698,2]
[333151882,1721891447903,-665.15,0.00013698,2]
[333151883,1721891447912,-843.82,0.00013698,2]
[333151884,1721891447922,-504.07197194,0.00013698,2]
[333151885,1721891447932,-4112.81,0.00013698,2]
[333151886,1721891447942,-500.0,0.00013698,2]
[333151887,1721891447951,-106.69008864,0.00013698,2]
[333151888,1721891448063,-393.30991136,0.00013698,2]
[333151889,1721891448072,-109.33843384,0.00013698,2]
[333151890,1721891448084,-864.89156616,0.00013698,2]
[333151891,1721891448095,-63.48843384,0.00013698,2]
[333151892,1721891448107,-436.51156616,0.00013698,2]
[333151893,1721891448118,-232.65843384,0.00013698,2]
[333151894,1721891448134,-267.34156616,0.00013698,2]
[333151895,1721891448146,-506.45506683,0.00013698,2]
[333151896,1721891448156,-500.0,0.00013698,2]
[333151897,1721891448167,-500.0,0.00013698,2]
[333151898,1721891448176,-699.8,0.00013698,2]
[333151899,1721891448186,-512.06726257,0.00013698,2]
[333151900,1721891448197,-1353.77,0.00013698,2]
[333151901,1721891448207,-500.0,0.00013698,2]
[333151902,1721891448219,-504.63,0.00013698,2]
[333151903,1721891448228,-1804.86,0.00013698,2]
[333151904,1721891448238,-1212.99,0.00013698,2]
[333151905,1721891448248,-500.0,0.00013698,2]
[333151906,1721891448258,-151.0,0.00013698,2]
[333151907,1721891448269,-152.408321,0.00013698,2]
[333151908,1721891448278,-500.0,0.00013698,2]
[333151909,1721891448288,-500.0,0.00013698,2]
[333151910,1721891448299,-500.0,0.00013698,2]
[333151911,1721891448310,-500.0,0.00013698,2]
[333151912,1721891448321,-1704.34,0.00013698,2]
[333151913,1721891448332,-481.79622285,0.00013698,2]
[333151914,1721891448343,-1803.55,0.00013698,2]
[333151915,1721891448353,-500.0,0.00013698,2]
[333151916,1721891448363,-500.0,0.00013698,2]
[333151917,1721891448374,-500.0,0.00013698,2]
[333151918,1721891448385,-2400.77,0.00013698,2]
[333151919,1721891448395,-500.0,0.00013698,2]
[333151920,1721891448405,-500.0,0.00013698,2]
[333151921,1721891448416,-500.0,0.00013698,2]
[333151922,1721891448426,-500.0,0.00013698,2]
[333151923,1721891448437,-1580.76,0.00013698,2]
[333151924,1721891448449,-500.0,0.00013698,2]
[333151925,1721891448459,-151.0,0.00013698,2]
[333151926,1721891448469,-151.0,0.00013698,2]
[333151927,1721891448480,-151.0,0.00013698,2]
[333151928,1721891448490,-500.0,0.00013698,2]
[333151929,1721891448502,-500.0,0.00013698,2]
[333151930,1721891448515,-151.0,0.00013698,2]
[333151931,1721891448524,-500.0,0.00013698,2]
[333151932,1721891448534,-517.40359857,0.00013698,2]
[333151933,1721891448544,-2331.0,0.00013698,2]
[333151934,1721891448554,-151.0,0.00013698,2]
[333151935,1721891448564,-151.0,0.00013698,2]
[333151936,1721891448573,-152.730491,0.00013698,2]
[333151937,1721891448583,-296.824352,0.00013698,2]
[333151938,1721891448593,-500.0,0.00013698,2]
[333151939,1721891448603,-500.0,0.00013698,2]
[333151940,1721891448614,-3390.68,0.00013698,2]
[333151941,1721891448623,-500.0,0.00013698,2]
[333151942,1721891448634,-500.0,0.00013698,2]
[333151943,1721891448645,-500.0,0.00013698,2]
[333151944,1721891448655,-500.0,0.00013698,2]
[333151945,1721891448665,-162.131697,0.00013698,2]
[333151946,1721891448675,-500.0,0.00013698,2]
[333151947,1721891448685,-10285.58,0.00013698,2]
[333151948,1721891448696,-500.0,0.00013698,2]
[333151949,1721891448706,-500.0,0.00013698,2]
[333151950,1721891448716,-500.0,0.00013698,2]
[333151951,1721891448727,-500.0,0.00013698,2]
[333151952,1721891448737,-500.12511869,0.00013698,2]
[333151953,1721891448747,-500.0,0.00013698,2]
[333151954,1721891448758,-500.0,0.00013698,2]
[333151955,1721891448768,-500.0,0.00013698,2]
[333151956,1721891448778,-500.0,0.00013698,2]
[333151957,1721891448787,-500.0,0.00013698,2]
[333151958,1721891448797,-209.6701643,0.00013698,2]
[333151959,1721891448807,-259.59876338,0.00013698,2]
[333151960,1721891448818,-500.0,0.00013698,2]
[333151961,1721891448828,-500.0,0.00013698,2]
[333151962,1721891448838,-1055.33335258,0.00013698,2]
[333151963,1721891448848,-587.02309342,0.00013698,2]
[333151964,1721891448858,-500.0,0.00013698,2]
[333151965,1721891448868,-1055.33335258,0.00013698,2]
[333151966,1721891448878,-500.0,0.00013698,2]
[333151967,1721891448888,-500.0,0.00013698,2]
[333151968,1721891448898,-500.0,0.00013698,2]
[333151969,1721891448909,-1055.33335258,0.00013698,2]
[333151970,1721891448920,-500.0,0.00013698,2]
[333151971,1721891448929,-1055.33335258,0.00013698,2]
[333151972,1721891448938,-1055.33335258,0.00013698,2]
[333151973,1721891448948,-452.09061459,0.00013698,2]
[333151974,1721891448959,-500.0,0.00013698,2]
[333151975,1721891448969,-500.0,0.00013698,2]
[333151976,1721891448979,-1055.33335258,0.00013698,2]
[333151977,1721891448989,-500.0,0.00013698,2]
[333151978,1721891449003,-500.0,0.00013698,2]
[333151979,1721891449013,-500.0,0.00013698,2]
[333151980,1721891449023,-500.0,0.00013698,2]
[333151981,1721891449033,-500.0,0.00013698,2]
[333151982,1721891449042,-500.0,0.00013698,2]
[333151983,1721891449052,-500.0,0.00013698,2]
[333151984,1721891449062,-500.0,0.00013698,2]
[333151985,1721891449071,-500.0,0.00013698,2]
[333151986,1721891449081,-500.0,0.00013698,2]
[333151987,1721891449093,-500.0,0.00013698,2]
[333151988,1721891449103,-1055.33335258,0.00013698,2]
[333151989,1721891449115,-309.77588807,0.00013698,2]
[333151990,1721891449125,-500.0,0.00013698,2]
[333151991,1721891449134,-500.0,0.00013698,2]
[333151992,1721891449144,-1055.33335258,0.00013698,2]
[333151993,1721891449154,-500.0,0.00013698,2]
[333151994,1721891449166,-500.0,0.00013698,2]
[333151995,1721891449177,-500.0,0.00013698,2]
[333151996,1721891449187,-500.0,0.00013698,2]
[333151997,1721891449197,-500.0,0.00013698,2]
[333151998,1721891449207,-467.28913775,0.00013698,2]
[333151999,1721891449219,-500.0,0.00013698,2]
[333152000,1721891449230,-500.0,0.00013698,2]
[333152001,1721891449240,-1833.71,0.00013698,2]
[333152002,1721891449251,-1780.93728,0.00013699,2]
[333152003,1721891449262,-3000.0,0.00013699,2]
[333152004,1721891449272,-151.0,0.00013699,2]
[333152005,1721891449282,-152.373414,0.00013699,2]
[333152006,1721891449293,-151.0,0.00013699,2]
[333152007,1721891449305,-150.112233,0.000137,2]
[333152008,1721891449315,-150.112233,0.000137,2]
[333152009,1721891449326,-150.112233,0.000137,2]
[333152010,1721891449337,-150.112233,0.000137,2]
[333152011,1721891449347,-236.897,0.0001378,2]
[333152012,1721891449358,-151.26,0.0001378,2]
[333152013,1721891449367,-150.112233,0.000138,2]
[333152014,1721891449376,-150.112233,0.000138,2]
[333152015,1721891449386,-150.112233,0.000138,2]
[333152016,1721891449397,-150.112233,0.000138,2]
[333152017,1721891449407,-155.0,0.0001383,2]
[333152018,1721891449419,-253.246605,0.00013832,2]
[333152019,1721891449430,-160.0,0.00013876,4]
[333152020,1721891449440,-363.59268565,0.00013879,2]
[333152021,1721891449450,-483.14931924,0.000139,2]
[333152022,1721891449885,-336.43271754,0.00013698,2]
[333152023,1721891449896,-297.84903269,0.00013698,2]
[333152024,1721891449907,-500.0,0.00013698,2]
[333152025,1721891449920,-500.0,0.00013698,2]
[333152026,1721891449930,-512.64637782,0.00013698,2]
[333152027,1721891449940,-500.0,0.00013698,2]
[333152028,1721891449952,-6613.16108285,0.000139,2]
[333152029,1721891450588,-206.3050992,0.00012765,2]
[333152030,1721891450598,-127.0935779,0.00013698,2]
[333152031,1721891450610,-372.9064221,0.00013698,2]
[333152032,1721891450620,-500.0,0.00013698,2]
[333152033,1721891450630,-500.0,0.00013698,2]
[333152034,1721891450640,-500.0,0.00013698,2]
[333152035,1721891450649,-500.0,0.00013698,2]
[333152036,1721891450659,-500.0,0.00013698,2]
[333152037,1721891450668,-500.0,0.00013698,2]
[333152038,1721891450678,-500.0,0.00013698,2]
[333152039,1721891450687,-265.59562001,0.00013698,2]
[333152040,1721891450696,-500.0,0.00013698,2]
[333152041,1721891450706,-500.0,0.00013698,2]
[333152042,1721891450715,-500.0,0.00013698,2]
[333152043,1721891450726,-147.62140576,0.00013698,2]
[333152044,1721891450825,273.37336231,9.9e-05,2]
[333152045,1721891455377,273.37336231,9.9e-05,2]
[333152046,1721891474515,200.0,0.0001,2]
[333152047,1721891497219,4253.25327538,9.999e-05,2]
[333152048,1721891497243,4350.36961283,9.999e-05,2]
[333152049,1721891502452,315.60331665,9.999e-05,2]
[333152050,1721891506832,602.9897434,9.999e-05,2]
[333152051,1721891509875,663.44744723,9.999e-05,2]
[333152053,1721891533667,3971.85274202,0.0001,2]
[333152054,1721891536305,209.61899477,9.999e-05,2]
[333152055,1721891547763,200.0,0.0001,2]
[333152056,1721891560123,273.37336231,9.9e-05,2]
[333152057,1721891566131,269.20148996,9.999e-05,7]
[333152058,1721891568129,273.37336231,9.9e-05,2]
[333152059,1721891577076,273.37336231,9.9e-05,2]
[333152060,1721891577698,533.28027744,9.999e-05,2]
[333152061,1721891594510,187.64804383,9.999e-05,2]
[333152062,1721891595450,161.96356603,9.999e-05,2]
[333152063,1721891616430,200.0,0.0001,2]
[333152064,1721891620822,320.01205453,9.999e-05,2]
[333152065,1721891622522,156.4756886,9.999e-05,2]
[333152066,1721891623694,2476.25709854,9.999e-05,2]
[333152067,1721891626182,209.73493868,9.999e-05,2]
[333152068,1721891627846,726.90527473,9.999e-05,2]
[333152069,1721891628496,154.87856281,0.0001,2]
[333152070,1721891629219,341.75517415,9.999e-05,2]
[333152071,1721891631356,808.24550809,9.999e-05,2]
[333152072,1721891632470,403.29212142,9.999e-05,2]
[333152073,1721891632611,783.20081076,9.999e-05,2]
[333152074,1721891634418,309.45844772,9.999e-05,2]
[333152075,1721891635635,210.56283381,9.999e-05,2]
[333152076,1721891636713,849.83919576,9.999e-05,2]
[333152077,1721891636950,176.43256407,9.999e-05,2]
[333152078,1721891638662,156.28069867,9.999e-05,2]